fUST/lending_fUST_20260317
["ID","MTS","AMOUNT","RATE_DAILY","PERIOD"]
[408485708,1773742246327,-972.89634874,6.849e-05,2]
[408485709,1773742246343,-59.06999719,6.849e-05,2]
[408485710,1773742246352,-257.7335949,6.849e-05,2]
[408485711,1773742246362,-327.86436245,6.849e-05,2]
[408485712,1773742246372,-215.31167408,6.849e-05,2]
[408485713,1773742246382,-266.34414909,6.849e-05,2]
[408485714,1773742246392,-479.29825149,6.849e-05,2]
[408485715,1773742246403,-186.34182494,6.849e-05,2]
[408485716,1773742246532,-495.33182126,6.849e-05,2]
[408485717,1773742246543,-170.24799314,6.849e-05,2]
[408485718,1773742246554,-153.14510821,6.88e-05,2]
[408485719,1773742246564,-1960.21994654,6.88e-05,2]
[408485720,1773742246575,-2494.07384801,6.915e-05,2]
[408485721,1773742246587,-4637.84388106,6.961e-05,2]
[408485722,1773742246598,-1159.46097027,6.962e-05,2]
[408485723,1773742246609,-1396.0,6.965e-05,2]
[408485724,1773742246618,-2187.0,6.965e-05,2]
[408485725,1773742246628,-640.0,6.965e-05,2]
[408485726,1773742246638,-734.0,6.965e-05,2]
[408485727,1773742246648,-183.0,6.965e-05,2]
[408485728,1773742246659,-438.0,6.965e-05,2]
[408485729,1773742246668,-387.69069996,6.978e-05,2]
[408485730,1773742246678,-1000.0,6.992e-05,2]
[408485731,1773742246687,-791.0,6.992e-05,2]
[408485732,1773742246697,-2608.7871831,7e-05,2]
[408485733,1773742246707,-151.07100337,7e-05,5]
[408485734,1773742246716,-299.07329982,7.018e-05,2]
[408485735,1773742246727,-2579.17784983,7.018e-05,2]
[408485736,1773742246737,-7239.38443309,7.133e-05,2]
[408485737,1773742246746,-2190.52115468,7.133e-05,2]
[408485738,1773742246756,-500.0,7.213e-05,2]
[408485739,1773742246766,-157.0,7.3e-05,2]
[408485740,1773742246778,-157.0,7.3e-05,2]
[408485741,1773742246789,-2008.23898334,7.316e-05,2]
[408485742,1773742246799,-2674.60743027,7.566e-05,2]
[408485743,1773742246809,-1000.0,7.692e-05,2]
[408485744,1773742246819,-1000.0,7.692e-05,2]
[408485745,1773742246829,-1000.0,7.761e-05,2]
[408485746,1773742246839,-235.770449,7.84e-05,2]
[408485747,1773742246849,-329.05034,7.84e-05,2]
[408485748,1773742246859,-171.173581,7.84e-05,2]
[408485749,1773742246872,-160.0,7.84e-05,2]
[408485750,1773742246882,-165.819995,7.84e-05,2]
[408485751,1773742246891,-171.63999,7.84e-05,2]
[408485752,1773742246901,-192.041793,7.84e-05,2]
[408485753,1773742246912,-235.7525,7.84e-05,2]
[408485754,1773742246922,-329.05034,7.84e-05,2]
[408485755,1773742246932,-256.760373,7.84e-05,2]
[408485756,1773742246943,-160.0,7.84e-05,2]
[408485757,1773742246954,-165.819995,7.84e-05,2]
[408485758,1773742246964,-171.63999,7.84e-05,2]
[408485759,1773742246976,-4014.50191106,8e-05,2]
[408485760,1773742246986,-622.24,8e-05,2]
[408485761,1773742246996,-9746.3808931,8e-05,2]
[408485762,1773742247005,-3277.37230973,8e-05,2]
[408485763,1773742247016,-41879.25370168,8e-05,2]
[408485764,1773742247028,-7234.94619007,8e-05,2]
[408485807,1773743432213,-5000.0,4.205e-05,2]
[408485808,1773743432222,-2187.0,4.465e-05,2]
[408485809,1773743432232,-1396.0,4.465e-05,2]
[408485810,1773743432241,-640.0,4.465e-05,2]
[408485811,1773743432250,-438.0,4.465e-05,2]
[408485812,1773743432260,-367.219,4.465e-05,2]
[408485814,1773743432269,-183.781,4.465e-05,2]
[408485816,1773743432279,-300.0,4.553e-05,2]
[408485817,1773743432288,-300.0,4.553e-05,2]
[408485818,1773743432297,-300.0,4.553e-05,2]
[408485819,1773743432306,-300.0,4.553e-05,2]
[408485820,1773743432315,-300.0,4.553e-05,2]
[408485821,1773743432324,-300.0,4.553e-05,2]
[408485822,1773743432334,-300.0,4.553e-05,2]
[408485823,1773743432343,-300.0,4.553e-05,2]
[408485824,1773743432352,-300.0,4.553e-05,2]
[408485825,1773743432361,-300.0,4.553e-05,2]
[408485826,1773743432370,-300.0,4.553e-05,2]
[408485827,1773743432379,-300.0,4.553e-05,2]
[408485829,1773743432389,-300.0,4.553e-05,2]
[408485831,1773743432398,-300.0,4.553e-05,2]
[408485833,1773743432408,-300.0,4.553e-05,2]
[408485835,1773743432416,-600.0,4.643e-05,2]
[408485837,1773743432425,-500.0,4.81e-05,2]
[408485839,1773743432434,-6732.80555549,5e-05,2]
[408485841,1773743432443,-13224.13412268,5.1e-05,2]
[408485843,1773743432452,-720.0,5.107e-05,2]
[408485845,1773743432461,-500.0,5.173e-05,2]
[408485846,1773743432470,-500.0,5.199e-05,2]
[408485848,1773743432479,-225.85170925,5.199e-05,2]
[408485850,1773743432489,-500.0,5.199e-05,2]
[408485853,1773743432498,-174.75275547,5.199e-05,2]
[408485854,1773743432508,-156.74038402,5.199e-05,2]
[408485856,1773743432517,-446.91343968,5.199e-05,2]
[408485858,1773743432526,-99006.80203341,5.2e-05,2]
[408486408,1773743438248,-4630.75608325,5.2e-05,2]
[408486421,1773743438361,-658.48422008,5.2e-05,2]
[408486428,1773743438414,-394.98932397,5.2e-05,2]
[408486430,1773743438425,-1119.51597385,5.2e-05,2]
[408486638,1773743440828,-558.0,5.148e-05,2]
[408486822,1773743444074,-1980.04400562,5.148e-05,2]
[408486846,1773743446405,-2461.95599438,5.148e-05,2]
[408486847,1773743446417,-7116.01576403,5.2e-05,2]
[408486886,1773743741293,1221.0,9.2e-05,120]
[408486887,1773743741324,363.37,9.2e-05,120]
[408486888,1773743847184,-200.0,0.00014341,120]
[408486889,1773743847237,-200.0,0.00014701,120]
[408486890,1773743847297,-200.0,0.00016132,120]
[408486891,1773743847344,-102147.28315102,0.000163,120]
[408486892,1773743847400,-200.0,0.00017524,120]
[408486893,1773743847448,-200.0,0.00017524,120]
[408486894,1773743847491,-73442.72302381,0.00018,120]
[408486895,1773743847533,-200.0,0.00018174,120]
[408486896,1773743847576,-203.33670748,0.00018524,120]
[408486897,1773743847615,-202.78404172,0.00018539,120]
[408486898,1773743847655,-191.61476503,0.00018539,120]
[408486899,1773743847694,-185.36028382,0.00018621,120]
[408486900,1773743847732,-161.99356132,0.00018621,120]
[408486901,1773743847770,-200.0,0.00018622,120]
[408486902,1773743847810,-215.95555612,0.00018708,120]
[408486903,1773743847851,-174.97668628,0.00018708,120]
[408486904,1773743847897,-296.36116883,0.00018744,120]
[408486905,1773743847957,-583.91238406,0.00018773,120]
[408486906,1773743848001,-167.7341873,0.00018851,120]
[408486907,1773743848043,-5000.0,0.00018851,120]
[408486908,1773743848084,-296.36116878,0.00018851,120]
[408486909,1773743848126,-255.32236679,0.00018869,120]
[408486910,1773743848166,-162.33047169,0.00018881,120]
[408486911,1773743848206,-194.63746134,0.00018881,120]
[408486912,1773743848247,-6000.0,0.00019,120]
[408486913,1773743848288,-305.93857052,0.0001915,120]
[408486914,1773743848334,-203.33670748,0.0001918,120]
[408486915,1773743848382,-1070.03653918,0.00019183,120]
[408486916,1773743848436,-199.73290842,0.00019258,120]
[408486917,1773743848490,-268.16284589,0.00019258,120]
[408486918,1773743848539,-223.68255462,0.00019284,120]
[408486919,1773743848585,-219.60079503,0.00019284,120]
[408486920,1773743848631,-162.23653838,0.00019284,120]
[408486921,1773743848682,-264.21772826,0.00019296,120]
[408486922,1773743848732,-187.74274386,0.00019296,120]
[408486923,1773743848781,-259.04968177,0.00019296,120]
[408486924,1773743848825,-243.49570754,0.00019341,120]
[408486925,1773743848864,-151.9824073,0.00019417,120]
[408486926,1773743848905,-170.39567761,0.00019435,120]
[408486927,1773743848947,-215.95555609,0.00019448,120]
[408486928,1773743848986,-233.30224837,0.00019448,120]
[408486929,1773743849026,-279.44487621,0.00019498,120]
[408486930,1773743849069,-1070.03653918,0.00019523,120]
[408486931,1773743849111,-200.0,0.00019576,120]
[408486932,1773743849150,-84101.64263158,0.00019602,120]
[408486933,1773743849190,-1018.99951539,0.00019652,120]
[408486934,1773743849231,-546.37484217,0.00019768,120]
[408486935,1773743849269,-261.90024167,0.00019774,120]
[408486936,1773743849306,-202.78404173,0.00019811,120]
[408486937,1773743849342,-152.96928526,0.00019836,120]
[408486938,1773743849378,-281.61411576,0.00019847,120]
[408486939,1773743849414,-158.73293026,0.00019847,120]
[408486940,1773743849449,-1070.03653918,0.00019863,120]
[408486941,1773743849485,-191.61476506,0.00019895,120]
[408486942,1773743849521,-197.02369018,0.00019921,120]
[408486943,1773743849559,-154.72190937,0.00019921,120]
[408486944,1773743849595,-8002.29,0.00019999,120]
[408486945,1773743849633,-60308.78940779,0.0002,120]
[408486946,1773743849669,-501.60090496,0.0002,120]
[408486947,1773743849704,-10394.18748436,0.0002,120]
[408486948,1773743849738,-4000.0,0.0002,120]
[408486949,1773743849772,-2556.22907079,0.0002,120]
[408486950,1773743849808,-470.82106864,0.00020116,120]
[408486951,1773743849844,-546.37484217,0.0002013,120]
[408486952,1773743849881,-1172.5656453,0.00020143,120]
[408486953,1773743849917,-165.90333377,0.00020176,120]
[408486954,1773743849954,-194.99977778,0.00020231,120]
[408486955,1773743849992,-202.53724333,0.00020243,120]
[408486956,1773743850028,-218.04284305,0.00020367,120]
[408486957,1773743850064,-368.65086529,0.00020367,120]
[408486958,1773743850100,-546.37484217,0.00020491,120]
[408486959,1773743850137,-1172.5656453,0.00020518,120]
[408486960,1773743850175,-200.0,0.00020553,120]
[408486961,1773743850211,-200.0,0.00020586,120]
[408486962,1773743850251,-156.9403562,0.00020782,120]
[408486963,1773743850287,-1172.5656453,0.00020894,120]
[408486964,1773743850322,-10000.0,0.00021,120]
[408486965,1773743850355,-5000.00000007,0.00021,120]
[408486966,1773743850394,-10000.0,0.0002191,120]
[408486967,1773743850431,-5000.0073004,0.00022,120]
[408486968,1773743850469,-200.0,0.0002211,120]
[408486969,1773743850505,-200.0,0.00022188,120]
[408486970,1773743850544,-4842.92,0.00023,120]
[408486971,1773743850580,-1444.0,0.00023233,120]
[408486972,1773743850619,-200.0,0.00023936,120]
[408486973,1773743850656,-200.0,0.00024008,120]
[408486974,1773743850693,-10048.68477369,0.00024108,120]
[408486975,1773743850728,-200.0,0.00024449,120]
[408486976,1773743850769,-9487.22608816,0.00025,120]
[408486977,1773743850804,-5199.31953487,0.00025,120]
[408486978,1773743850840,-5329.52501065,0.00025,120]
[408486979,1773743850877,-6000.0,0.00025,120]
[408486980,1773743850915,-5000.0,0.00025,120]
[408486981,1773743850959,-3000.0,0.00025,120]
[408486982,1773743851003,-432.0,0.00025,120]
[408486983,1773743851046,-200.0,0.0002547,120]
[408486984,1773743851090,-7341.42342069,0.00026,120]
[408486985,1773743851134,-755.5898557,0.00026,120]
[408486986,1773743851180,-200.0,0.00026287,120]
[408486987,1773743851393,-200.0,0.00026386,120]
[408486988,1773743851445,-200.0,0.00026517,120]
[408486989,1773743851491,-10000.0,0.00027,120]
[408486990,1773743851537,-384.19226,0.00027,120]
[408486991,1773743851582,-238.0,0.00027,120]
[408486992,1773743851627,-1547.84133,0.00027,120]
[408486993,1773743851678,-1547.84133,0.00027,120]
[408486994,1773743851725,-1547.84133,0.00027,120]
[408486995,1773743851766,-1547.84133,0.00027,120]
[408486996,1773743851810,-1547.84133,0.00027,120]
[408486997,1773743851854,-1547.84133,0.00027,120]
[408486998,1773743851897,-1547.84133,0.00027,120]
[408486999,1773743851938,-1547.84133,0.00027,120]
[408487000,1773743851981,-1547.84137,0.00027,120]
[408487001,1773743852023,-1444.0,0.00027178,120]
[408487002,1773743852060,-200.0,0.00027225,120]
[408487003,1773743852101,-59027.49925912,0.0002738,120]
[408487004,1773743852142,-788.24290115,0.0002738,120]
[408487005,1773743852186,-56912.80418701,0.0002739,120]
[408487006,1773743852238,-500.0,0.00027397,120]
[408487007,1773743852278,-500.0,0.00027397,120]
[408487008,1773743852320,-642.54057917,0.00027397,120]
[408487009,1773743852362,-1402.0,0.00027397,120]
[408487010,1773743852404,-4062.0,0.00027397,120]
[408487011,1773743852441,-1000.0,0.00027397,120]
[408487012,1773743853144,6221.40066303,0.00027297,120]
[408487058,1773743887521,1055.28,0.000273,120]
[408487638,1773743947023,527.64,0.000273,120]
[408487781,1773744007782,377.65,0.000273,120]
[408488041,1773744033015,162.0,0.00022483,120]
[408488042,1773744033338,1716.0,0.00023729,120]
[408488043,1773744034640,162.0,0.00023607,120]
[408488044,1773744034903,1716.0,0.00024915,120]
[408488045,1773744036201,162.0,0.00024787,120]
[408488046,1773744036259,1716.0,0.00026161,120]
[408488047,1773744037456,162.0,0.00026026,120]
[408488048,1773744038681,162.0,0.00027328,120]
[408488049,1773744071205,500.0,0.00027397,120]
[408488050,1773744071768,500.0,0.00027397,120]
[408488051,1773744072354,500.0,0.00027397,120]
[408488052,1773744072883,500.0,0.00027397,120]
[408488053,1773744073393,500.0,0.00027397,120]
[408488054,1773744073937,500.0,0.00027397,120]
[408488055,1773744074465,500.0,0.00027397,120]
[408488056,1773744074962,500.0,0.00027397,120]
[408488057,1773744075552,500.0,0.00027397,120]
[408488058,1773744076112,500.0,0.00027397,120]
[408488059,1773744077171,500.0,0.00027397,120]
[408488060,1773744077683,500.0,0.00027397,120]
[408488061,1773744078236,500.0,0.00027397,120]
[408488062,1773744078818,500.0,0.00027397,120]
[408488063,1773744079286,500.0,0.00027397,120]
[408488064,1773744079826,500.0,0.00027397,120]
[408488065,1773744080566,500.0,0.00027397,120]
[408488066,1773744080858,500.0,0.00027397,120]
[408488067,1773744081412,500.0,0.00027397,120]
[408488068,1773744081962,500.0,0.00027397,120]
[408488069,1773744082505,597.21700604,0.00027397,120]
[408488070,1773744162896,779.0,0.00027397,120]
[408488071,1773744180430,-1980.04400562,4.278e-05,10]
[408488072,1773744180453,-19.95599438,4.321e-05,10]
[408488073,1773744181538,-2000.0,4.321e-05,10]
[408488074,1773744181894,-2000.0,4.321e-05,10]
[408488075,1773744182216,-980.04400562,4.321e-05,10]
[408488076,1773744182238,-1019.95599438,4.543e-05,2]
[408488077,1773744182559,-180.04400562,4.543e-05,2]
[408488078,1773744182581,-300.0,4.543e-05,2]
[408488079,1773744182601,-300.0,4.544e-05,2]
[408488080,1773744182621,-300.0,4.544e-05,2]
[408488081,1773744182641,-919.95599438,4.545e-05,2]
[408488082,1773744182852,-1267.04400562,4.545e-05,2]
[408488083,1773744182874,-640.0,4.545e-05,2]
[408488084,1773744182894,-92.95599438,4.545e-05,2]
[408488085,1773744183201,-1303.04400562,4.545e-05,2]
[408488086,1773744183220,-183.0,4.545e-05,2]
[408488087,1773744183240,-438.0,4.545e-05,2]
[408488088,1773744183262,-75.95599438,4.635e-05,2]
[408488089,1773744183797,-224.04400562,4.635e-05,2]
[408488090,1773744183823,-300.0,4.635e-05,2]
[408488091,1773744183844,-300.0,4.635e-05,2]
[408488092,1773744183866,-300.0,4.635e-05,2]
[408488093,1773744183889,-300.0,4.635e-05,2]
[408488094,1773744183911,-300.0,4.635e-05,2]
[408488095,1773744183932,-275.95599438,4.635e-05,2]
[408488096,1773744184088,-24.04400562,4.635e-05,2]
[408488097,1773744184110,-300.0,4.635e-05,2]
[408488098,1773744184132,-300.0,4.635e-05,2]
[408488099,1773744184152,-300.0,4.635e-05,2]
[408488100,1773744184173,-300.0,4.635e-05,2]
[408488101,1773744184194,-300.0,4.635e-05,2]
[408488102,1773744184217,-300.0,4.635e-05,2]
[408488103,1773744184238,-175.95599438,4.635e-05,2]
[408488104,1773744184507,-124.04400562,4.635e-05,2]
[408488105,1773744184529,-300.0,4.635e-05,2]
[408488106,1773744184550,-500.0,4.873e-05,2]
[408488107,1773744184573,-1075.95599438,4.9e-05,2]
[408488108,1773744184744,-2000.0,4.9e-05,2]
[408488109,1773744185112,-2000.0,4.9e-05,2]
[408488110,1773744185429,-2000.0,4.9e-05,2]
[408488111,1773744185771,-2000.0,4.9e-05,2]
[408488112,1773744186074,-2000.0,4.498e-05,10]
[408488113,1773744186544,-2000.0,4.498e-05,10]
[408488114,1773744186850,-1000.0,4.498e-05,10]
[408488115,1773744186872,-1000.0,4.9e-05,2]
[408488116,1773744187167,-2000.0,4.9e-05,2]
[408488117,1773744187483,-2000.0,4.9e-05,2]
[408488118,1773744187798,-2000.0,4.9e-05,2]
[408488119,1773744188138,-2000.0,4.9e-05,2]
[408488120,1773744188452,-2000.0,4.9e-05,2]
[408488121,1773744188792,-2000.0,4.9e-05,2]
[408488122,1773744189186,-2000.0,4.9e-05,2]
[408488123,1773744189475,-2000.0,4.9e-05,2]
[408488124,1773744189819,-2000.0,4.9e-05,2]
[408488125,1773744190161,-2000.0,4.9e-05,2]
[408488126,1773744190683,-2000.0,4.9e-05,2]
[408488127,1773744191151,-2000.0,4.9e-05,2]
[408488128,1773744191635,-2000.0,4.9e-05,2]
[408488129,1773744192138,-2000.0,4.9e-05,2]
[408488130,1773744192474,-2000.0,4.9e-05,2]
[408488131,1773744192934,-2000.0,4.9e-05,2]
[408488132,1773744193283,-2000.0,4.9e-05,2]
[408488133,1773744193624,-2000.0,4.9e-05,2]
[408488134,1773744193987,-2000.0,4.9e-05,2]
[408488135,1773744194323,-2000.0,4.9e-05,2]
[408488136,1773744194742,-2000.0,4.9e-05,2]
[408488137,1773744195351,-2000.0,4.9e-05,2]
[408488138,1773744195694,-2000.0,4.9e-05,2]
[408488139,1773744196043,-2000.0,4.9e-05,2]
[408488140,1773744196405,-2000.0,4.9e-05,2]
[408488141,1773744196739,-2000.0,4.9e-05,2]
[408488142,1773744197092,-2000.0,4.9e-05,2]
[408488143,1773744197164,-2000.0,4.9e-05,2]
[408488144,1773744197430,-2000.0,4.9e-05,2]
[408488145,1773744197884,-2000.0,4.9e-05,2]
[408488146,1773744198120,-2000.0,4.9e-05,2]
[408488147,1773744198473,-2000.0,4.9e-05,2]
[408488148,1773744198817,-2000.0,4.9e-05,2]
[408488149,1773744199190,-2000.0,4.9e-05,2]
[408488150,1773744199530,-2000.0,4.9e-05,2]
[408488151,1773744199889,-2000.0,4.9e-05,2]
[408488152,1773744200233,-2000.0,4.9e-05,2]
[408488153,1773744200578,-2000.0,4.9e-05,2]
[408488154,1773744200930,-2000.0,4.9e-05,2]
[408488155,1773744201288,-2000.0,4.9e-05,2]
[408488156,1773744201623,-2000.0,4.9e-05,2]
[408488157,1773744201960,-2000.0,4.9e-05,2]
[408488158,1773744202315,-2000.0,4.9e-05,2]
[408488159,1773744202661,-2000.0,4.9e-05,2]
[408488160,1773744203013,-2000.0,4.9e-05,2]
[408488161,1773744203353,-2000.0,4.9e-05,2]
[408488162,1773744203710,-2000.0,4.9e-05,2]
[408488163,1773744204063,-2000.0,4.9e-05,2]
[408488164,1773744204500,-2000.0,4.9e-05,2]
[408488165,1773744205254,-2000.0,4.9e-05,2]
[408488166,1773744205352,-2000.0,4.9e-05,2]
[408488167,1773744205702,-2000.0,4.9e-05,2]
[408488168,1773744206054,-2000.0,4.9e-05,2]
[408488169,1773744206425,-2000.0,4.9e-05,2]
[408488170,1773744206781,-2000.0,4.9e-05,2]
[408488171,1773744207164,-2000.0,4.9e-05,2]
[408488172,1773744207516,-2000.0,4.9e-05,2]
[408488173,1773744207874,-2000.0,4.9e-05,2]
[408488174,1773744267672,-300.0,4.899e-05,2]
[408488175,1773744267699,-1700.0,4.9e-05,2]
[408488176,1773744268647,-2000.0,4.9e-05,2]
[408488177,1773744269009,-2000.0,4.9e-05,2]
[408488178,1773744269380,-2000.0,4.9e-05,2]
[408488179,1773744269724,-2000.0,4.9e-05,2]
[408488180,1773744270071,-2000.0,4.9e-05,2]
[408488181,1773744270439,-2000.0,4.9e-05,2]
[408488182,1773744271117,-2000.0,4.9e-05,2]
[408488183,1773744271486,-2000.0,4.9e-05,2]
[408488184,1773744271566,-2000.0,4.9e-05,2]
[408488185,1773744271860,-2000.0,4.9e-05,2]
[408488186,1773744272436,-2000.0,4.9e-05,2]
[408488187,1773744272889,-2000.0,4.9e-05,2]
[408488188,1773744273218,-2000.0,4.9e-05,2]
[408488189,1773744273541,-2000.0,4.9e-05,2]
[408488199,1773744285699,-2000.0,4.9e-05,2]
[408488200,1773744286760,-2000.0,4.9e-05,2]
[408488201,1773744287796,-2000.0,4.9e-05,2]
[408488202,1773744288244,-2000.0,4.9e-05,2]
[408488203,1773744289330,-2000.0,4.9e-05,2]
[408488204,1773744305491,1444.0,0.00023233,120]
[408488205,1773744305685,1444.0,0.00027178,120]
[408488206,1773744312512,686.0,0.0002571,120]
[408488207,1773744314023,686.0,0.00026995,120]
[408488214,1773744469847,1357.711,0.00027397,120]
[408488215,1773744471114,475.0,0.00027397,120]
[408488216,1773744471443,475.0,0.00027397,120]
[408488217,1773744471755,475.0,0.00027397,120]
[408488218,1773744472037,475.0,0.00027397,120]
[408488219,1773744472804,475.0,0.00027397,120]
[408488220,1773744473096,475.0,0.00027397,120]
[408488221,1773744473517,475.0,0.00027397,120]
[408488222,1773744473786,475.0,0.00027397,120]
[408488223,1773744474062,475.0,0.00027397,120]
[408488224,1773744474331,475.0,0.00027397,120]
[408488225,1773744475439,475.0,0.00027397,120]
[408488226,1773744475757,475.0,0.00027397,120]
[408488227,1773744476027,475.0,0.00027397,120]
[408488228,1773744476413,475.0,0.00027397,120]
[408488229,1773744476724,475.0,0.00027397,120]
[408488230,1773744477015,475.0,0.00027397,120]
[408488231,1773744477321,475.0,0.00027397,120]
[408488232,1773744477648,475.0,0.00027397,120]
[408488233,1773744477923,475.0,0.00027397,120]
[408488234,1773744478212,475.0,0.00027397,120]
[408488235,1773744478495,475.0,0.00027397,120]
[408488236,1773744478817,475.0,0.00027397,120]
[408488237,1773744479083,475.0,0.00027397,120]
[408488238,1773744479357,475.0,0.00027397,120]
[408488239,1773744479636,475.0,0.00027397,120]
[408488240,1773744479946,475.0,0.00027397,120]
[408488241,1773744480218,475.0,0.00027397,120]
[408488242,1773744480498,475.0,0.00027397,120]
[408488243,1773744480808,475.0,0.00027397,120]
[408488244,1773744481076,475.0,0.00027397,120]
[408488245,1773744481358,475.0,0.00027397,120]
[408488246,1773744481630,475.0,0.00027397,120]
[408488247,1773744481930,475.0,0.00027397,120]
[408488248,1773744482215,475.0,0.00027397,120]
[408488249,1773744482506,475.0,0.00027397,120]
[408488250,1773744482840,475.0,0.00027397,120]
[408488251,1773744483111,475.0,0.00027397,120]
[408488252,1773744483390,456.361,0.00027397,120]
[408488254,1773744519773,1000.0,0.00027397,120]
[408488255,1773744520042,1000.0,0.00027397,120]
[408488375,1773744632386,-394.50458116,4.5e-05,10]
[408488450,1773744638527,-1279.84607194,4.5e-05,10]
[408488452,1773744641885,-0.00946864,4.5e-05,10]
[408488456,1773744645428,-3325.63987826,4.5e-05,10]
[408488457,1773744645438,-1396.0,4.545e-05,2]
[408488458,1773744645451,-411.31741179,4.545e-05,2]
[408488459,1773744645534,-228.68258821,4.545e-05,2]
[408488460,1773744645544,-300.0,4.635e-05,2]
[408488461,1773744645556,-300.0,4.635e-05,2]
[408488462,1773744645568,-300.0,4.635e-05,2]
[408488463,1773744645578,-300.0,4.635e-05,2]
[408488464,1773744645588,-300.0,4.635e-05,2]
[408488465,1773744645599,-300.0,4.635e-05,2]
[408488466,1773744645609,-300.0,4.635e-05,2]
[408488467,1773744645619,-300.0,4.635e-05,2]
[408488468,1773744645630,-300.0,4.635e-05,2]
[408488469,1773744645642,-300.0,4.635e-05,2]
[408488470,1773744645651,-300.0,4.635e-05,2]
[408488471,1773744645662,-79.35355849,4.635e-05,2]
[408488479,1773744646641,-220.64644151,4.635e-05,2]
[408488480,1773744646651,-300.0,4.635e-05,2]
[408488481,1773744646661,-300.0,4.635e-05,2]
[408488482,1773744646671,-300.0,4.635e-05,2]
[408488483,1773744646681,-600.0,4.727e-05,2]
[408488484,1773744646690,-500.0,4.773e-05,2]
[408488485,1773744646700,-500.0,4.773e-05,2]
[408488486,1773744646709,-103508.52689102,4.8e-05,2]
[408488487,1773744646852,-5142.0,4.8e-05,2]
[408488489,1773744729950,3800.0,0.00027397,120]
[408488503,1773744960547,10000.0,0.00027397,120]
[408488504,1773744978602,10000.0,0.00027397,120]
[408488505,1773744994606,10000.0,0.00027397,120]
[408488509,1773745087047,1444.0,0.00023233,120]
[408488510,1773745087222,1444.0,0.00027178,120]
[408488511,1773745093633,60000.0,0.00027397,120]
[408488542,1773745243270,-4791.37217834,4.41e-05,10]
[408488575,1773745362899,40000.0,0.00027397,120]
[408488589,1773745408795,500.0,0.00027397,120]
[408488591,1773745419286,1000.0,0.00027397,120]
[408488602,1773745429118,1500.0,0.00027397,120]
[408488603,1773745437491,1558.87213397,0.00027397,120]
[408488614,1773745547463,3800.0,0.00027297,120]
[408488658,1773745750319,26797.9682923,0.000273,120]
[408488684,1773745804257,1007.18469,0.00027397,120]
[408488833,1773745837667,-5000.0,3.959e-05,10]
[408488835,1773745837676,-300.0,3.999e-05,2]
[408488837,1773745837686,-802414.57157404,4e-05,2]
[408488839,1773745837696,-203510.8228712,4e-05,2]
[408488841,1773745837705,-300.0,4.079e-05,2]
[408488843,1773745837715,-300.0,4.079e-05,2]
[408488844,1773745837726,-300.0,4.079e-05,2]
[408488846,1773745837737,-300.0,4.079e-05,2]
[408488848,1773745837747,-300.0,4.079e-05,2]
[408488850,1773745837757,-300.0,4.079e-05,2]
[408488852,1773745837767,-300.0,4.079e-05,2]
[408488854,1773745837777,-300.0,4.079e-05,2]
[408488857,1773745837786,-300.0,4.079e-05,2]
[408488858,1773745837795,-300.0,4.079e-05,2]
[408488860,1773745837806,-300.0,4.079e-05,2]
[408488862,1773745837816,-300.0,4.079e-05,2]
[408488864,1773745837825,-300.0,4.079e-05,2]
[408488866,1773745837834,-300.0,4.079e-05,2]
[408488868,1773745837844,-300.0,4.079e-05,2]
[408488870,1773745837853,-600.0,4.079e-05,2]
[408488871,1773745837862,-500.0,4.473e-05,2]
[408488872,1773745837872,-500.24088294,4.473e-05,2]
[408488873,1773745837881,-500.0,4.473e-05,2]
[408488874,1773745837891,-500.0,4.473e-05,2]
[408488875,1773745837900,-229.13887075,4.473e-05,2]
[408488876,1773745837910,-500.0,4.473e-05,2]
[408488877,1773745837919,-500.0,4.473e-05,2]